bitfinex/quotes_BTCUSD_20250525
["timestamp","ask_amount","ask_price","bid_price","bid_amount"]
[1748187139795,0.07769476,106840.0,106790.0,5.36624422]
[1748187139796,0.0667,106840.0,106790.0,5.36624422]
[1748187140008,0.0667,106840.0,106810.0,0.39]
[1748187140238,0.04107401,106870.0,106840.0,0.0592]
[1748187140447,0.0329497,106870.0,106860.0,0.4492]
[1748187140673,0.0329497,106870.0,106860.0,5.777878]
[1748187140868,0.12249526,106870.0,106860.0,5.777878]
[1748187141091,0.42205061,106870.0,106860.0,5.777878]
[1748187141299,0.42205061,106870.0,106860.0,4.713265]
[1748187141300,0.12249526,106870.0,106860.0,4.713265]
[1748187141528,0.0329497,106870.0,106860.0,4.713265]
[1748187141732,0.0269497,106870.0,106860.0,4.825765]
[1748187141942,0.10131985,106880.0,106870.0,0.05]
[1748187142173,0.08750446,106890.0,106880.0,0.4525]
[1748187142376,0.18705002,106890.0,106880.0,1.833911]
[1748187142587,0.17705002,106890.0,106880.0,1.118678]
[1748187142790,0.08750446,106890.0,106880.0,1.530038]
[1748187143003,0.08750446,106890.0,106880.0,1.561638]
[1748187143214,0.08750446,106890.0,106880.0,1.68208356]
[1748187143433,0.12093014,106910.0,106890.0,0.34]
[1748187143647,0.12093014,106910.0,106900.0,5.079063]
[1748187143859,0.12143476,106910.0,106900.0,5.079063]
[1748187144078,0.12143476,106910.0,106900.0,5.110663]
[1748187144287,0.02853476,106910.0,106900.0,5.141563]
[1748187144496,0.19645371,106920.0,106910.0,0.36731328]
[1748187144724,0.22274847,106940.0,106910.0,5.13727628]
[1748187144985,0.22274847,106940.0,106920.0,4.9534206]
[1748187145201,0.22274847,106940.0,106930.0,5.071683]
[1748187145412,0.22274847,106940.0,106930.0,4.749326]
[1748187145858,0.22274847,106940.0,106930.0,4.850864]
[1748187146081,6e-05,106940.0,106930.0,4.680113]
[1748187146536,6e-05,106940.0,106930.0,0.35604345]
[1748187146748,6e-05,106940.0,106930.0,0.42177545]
[1748187146958,6e-05,106940.0,106930.0,0.77628256]
[1748187147195,6e-05,106940.0,106930.0,0.251563]
[1748187147721,0.09160556,106940.0,106930.0,0.255713]
[1748187147927,0.00206,106940.0,106930.0,0.595713]
[1748187148134,0.08960556,106940.0,106930.0,0.595713]
[1748187148559,0.10914641,106940.0,106930.0,0.447193]
[1748187148794,0.09460556,106940.0,106930.0,0.866633]
[1748187149613,0.09460556,106940.0,106930.0,0.447193]
[1748187149828,0.00506,106940.0,106930.0,0.875233]
[1748187150034,0.0160077,107000.0,106940.0,0.34]
[1748187150243,0.08954556,106970.0,106960.0,0.34]
[1748187150474,0.08954556,106970.0,106960.0,3.02642]
[1748187150664,0.08954556,106970.0,106960.0,4.002643]
[1748187150865,0.08954556,106970.0,106960.0,3.718501]
[1748187151096,0.08954556,106970.0,106960.0,0.622541]
[1748187151327,0.08954556,106970.0,106960.0,0.4894]
[1748187151530,0.08954556,106970.0,106960.0,0.34]
[1748187151737,0.10408641,106970.0,106950.0,0.1494]
[1748187151937,0.16948641,106970.0,106960.0,0.001]
[1748187152362,0.01454085,106960.0,106930.0,0.1494]
[1748187152585,0.10408641,106950.0,106940.0,0.291667]
[1748187152797,0.10408641,106950.0,106930.0,0.1494]
[1748187153005,0.01454085,106940.0,106930.0,0.4894]
[1748187153211,0.08954556,106940.0,106930.0,3.29762]
[1748187153412,0.08954556,106940.0,106930.0,1.873903]
[1748187153635,0.08854556,106940.0,106930.0,1.873903]
[1748187154086,0.08611556,106940.0,106930.0,1.873903]
[1748187154470,0.09154556,106940.0,106930.0,1.102657]
[1748187154674,0.09154556,106940.0,106930.0,0.953257]
[1748187154876,0.08954556,106940.0,106930.0,1.102657]
[1748187155088,0.08954556,106940.0,106930.0,0.953257]
[1748187155295,0.09354556,106940.0,106930.0,0.953257]
[1748187155509,0.09354556,106940.0,106930.0,0.613257]
[1748187155713,0.09354556,106940.0,106930.0,0.1494]
[1748187155926,0.10808641,106940.0,106930.0,0.4894]
[1748187156137,0.0305,106930.0,106900.0,0.33724]
[1748187156352,0.08954556,106920.0,106910.0,0.11231]
[1748187156556,0.08954556,106920.0,106910.0,0.126332]
[1748187156771,0.08954556,106920.0,106910.0,1.07896116]
[1748187156979,0.08954556,106920.0,106910.0,1.076623]
[1748187157195,0.08954556,106920.0,106910.0,1.225983]
[1748187157417,0.08954556,106920.0,106910.0,1.076623]
[1748187157635,0.08954556,106920.0,106910.0,1.513263]
[1748187157871,0.08954556,106920.0,106910.0,1.225983]
[1748187158079,0.08954556,106920.0,106910.0,0.887687]
[1748187158502,0.09554556,106920.0,106910.0,0.888687]
[1748187158719,0.09554556,106920.0,106910.0,0.739327]
[1748187158953,0.59554556,106920.0,106910.0,1.175967]
[1748187159158,0.55541649,106920.0,106910.0,1.175967]
[1748187159369,0.55541649,106920.0,106910.0,0.739327]
[1748187159575,0.54795062,106920.0,106910.0,0.888687]
[1748187159755,0.54795062,106920.0,106910.0,0.15036]
[1748187160011,0.54795062,106920.0,106910.0,0.253703]
[1748187160244,0.54795062,106920.0,106910.0,0.593703]
[1748187160446,0.54048475,106920.0,106910.0,0.593703]
[1748187161294,0.53448475,106920.0,106910.0,0.592703]
[1748187161543,0.5,106920.0,106910.0,0.592703]
[1748187161956,0.46287093,106920.0,106910.0,0.592703]
[1748187162388,0.45540506,106920.0,106910.0,0.622803]
[1748187162607,0.42274186,106920.0,106910.0,0.879983]
[1748187162813,0.41527599,106920.0,106910.0,0.879983]
[1748187163021,0.41227599,106920.0,106910.0,0.879983]
[1748187163235,0.40481012,106920.0,106910.0,0.879983]
[1748187163447,0.49435568,106920.0,106900.0,0.33739131]
[1748187163622,0.49635568,106920.0,106900.0,0.48675131]
[1748187163875,0.50491324,106920.0,106910.0,0.34]
[1748187164141,0.50291324,106920.0,106900.0,0.48675131]
[1748187164351,0.50291324,106920.0,106910.0,0.478058]
[1748187164559,0.50291324,106920.0,106910.0,0.002]
[1748187164766,0.50291324,106920.0,106910.0,0.606449]
[1748187164973,0.50291324,106920.0,106910.0,0.34]
[1748187165152,0.50291324,106920.0,106910.0,0.14936]
[1748187165368,0.50291324,106920.0,106910.0,0.28252]
[1748187165602,0.50291324,106920.0,106910.0,0.48936]
[1748187166226,0.50291324,106920.0,106910.0,0.65758]
[1748187166451,0.50491324,106920.0,106910.0,0.467373]
[1748187166670,0.50491324,106920.0,106910.0,0.48936]
[1748187166872,0.56741324,106920.0,106910.0,0.48936]
[1748187167290,0.53871324,106920.0,106910.0,0.34]
[1748187167505,0.49844723,106920.0,106910.0,0.48936]
[1748187167722,0.4657834,106920.0,106910.0,3.110404]
[1748187167903,0.45831739,106920.0,106910.0,3.042796]
[1748187168368,0.41818755,106920.0,106910.0,2.889355]
[1748187168780,0.41072154,106920.0,106910.0,2.889355]
[1748187168983,0.37805771,106920.0,106910.0,2.67019]
[1748187169197,0.3705917,106920.0,106910.0,2.67019]
[1748187169650,0.33046186,106920.0,106910.0,2.67019]
[1748187170062,0.32299585,106920.0,106910.0,2.67019]
[1748187170281,0.29033202,106920.0,106910.0,2.67019]
[1748187170467,0.28286601,106920.0,106910.0,2.67019]
[1748187170719,0.18585444,106920.0,106910.0,2.67019]
[1748187170938,0.15319061,106920.0,106910.0,2.67019]
[1748187171162,0.26717016,106920.0,106910.0,0.14936]
[1748187171379,0.30007016,106920.0,106910.0,0.14936]
[1748187171609,0.29912247,106920.0,106910.0,0.14936]
[1748187171866,0.37393427,106920.0,106900.0,0.33739131]
[1748187172057,0.45668382,106910.0,106900.0,0.00115131]
[1748187172266,0.15434556,106910.0,106900.0,0.00115131]
[1748187172682,0.16942125,106910.0,106900.0,0.00115131]
[1748187172908,0.17175951,106910.0,106900.0,0.00115131]
[1748187173114,0.18059151,106910.0,106900.0,0.00115131]
[1748187173526,0.20660513,106910.0,106900.0,0.00115131]
[1748187173735,0.20426687,106910.0,106900.0,0.00115131]
[1748187173948,0.20726687,106910.0,106900.0,0.00215131]
[1748187174369,0.50426687,106910.0,106900.0,0.00115131]
[1748187174576,0.51880772,106910.0,106900.0,0.00115131]
[1748187174790,0.0319,106870.0,106840.0,0.33604]
[1748187174995,0.08954556,106860.0,106850.0,0.12765]
[1748187175201,0.08954556,106860.0,106840.0,0.61836]
[1748187175625,0.08854556,106860.0,106850.0,0.230456]
[1748187175831,0.08854556,106860.0,106840.0,0.61836]
[1748187176034,0.08854556,106860.0,106850.0,0.488159]
[1748187176245,0.08854556,106860.0,106840.0,0.61886462]
[1748187176452,0.08854556,106860.0,106850.0,0.14936]
[1748187176661,0.08954556,106860.0,106850.0,0.48936]
[1748187177271,0.15374556,106860.0,106840.0,0.33654462]
[1748187177483,0.15708382,106850.0,106840.0,0.00050462]
[1748187177706,0.45708382,106850.0,106840.0,0.00050462]
[1748187177945,0.08954556,106850.0,106840.0,0.00050462]
[1748187178131,0.08954556,106850.0,106840.0,0.48990462]
[1748187178339,0.08954556,106850.0,106840.0,3.12969562]
[1748187178538,0.08954556,106850.0,106840.0,3.28685762]
[1748187178742,0.08954556,106850.0,106840.0,1.66544662]
[1748187178946,0.08954556,106850.0,106840.0,1.16112462]
[1748187179089,0.08954556,106850.0,106840.0,1.16212462]
[1748187179535,0.08954556,106850.0,106840.0,1.04946962]
[1748187179735,0.08954556,106850.0,106840.0,1.05046962]
[1748187179942,0.09254556,106850.0,106840.0,0.00150462]
[1748187180138,0.09254556,106850.0,106840.0,0.31013762]
[1748187180394,0.09254556,106850.0,106840.0,0.34]
[1748187180560,0.15638382,106850.0,106840.0,0.34]
[1748187180954,0.15638382,106850.0,106830.0,0.28236]
[1748187181161,0.18233261,106850.0,106830.0,0.28236]
[1748187181500,0.18882688,106850.0,106830.0,0.43176]
[1748187181635,0.12498862,106850.0,106830.0,0.43176]
[1748187181856,0.12498862,106850.0,106840.0,0.34]
[1748187182055,0.12198862,106850.0,106840.0,0.34]
[1748187182299,0.09903983,106850.0,106840.0,0.34]
[1748187182703,0.09254556,106850.0,106840.0,0.34]
[1748187182862,0.08954556,106850.0,106840.0,0.34]
[1748187183124,0.08954556,106850.0,106840.0,0.341]
[1748187183295,0.09454556,106850.0,106840.0,0.341]
[1748187183705,0.09454556,106850.0,106840.0,0.001]
[1748187185072,0.09454556,106850.0,106840.0,0.887175]
[1748187185748,0.005,106850.0,106840.0,0.952375]
[1748187185955,0.005,106850.0,106840.0,0.96691585]
[1748187186164,0.005,106850.0,106840.0,1.02830718]
[1748187186365,0.01982676,106880.0,106840.0,0.65026141]
[1748187186517,0.00015113,106880.0,106870.0,0.0323]
[1748187186721,0.00015113,106880.0,106870.0,1.48013672]
[1748187186948,0.08969669,106880.0,106870.0,0.808926]
[1748187187112,0.08969669,106880.0,106870.0,0.43188]
[1748187187945,0.0309,106870.0,106850.0,0.76808]
[1748187188198,0.08954556,106860.0,106850.0,0.76808]
[1748187188400,0.08954556,106860.0,106850.0,1.88901]
[1748187188592,0.08954556,106860.0,106850.0,0.937482]
[1748187189507,0.00898366,106880.0,106860.0,0.34]
[1748187189659,0.00898366,106880.0,106870.0,4.77213794]
[1748187189660,0.09619096,106880.0,106870.0,4.77213794]
[1748187189870,0.08969669,106880.0,106870.0,4.769799]
[1748187190075,0.00015113,106880.0,106870.0,4.769799]
[1748187190449,0.00015113,106880.0,106870.0,5.109799]
[1748187190663,0.00415113,106880.0,106870.0,5.109799]
[1748187190864,0.00415113,106880.0,106870.0,5.137834]
[1748187191473,0.00415113,106880.0,106870.0,4.988394]
[1748187191672,0.00415113,106880.0,106870.0,5.137834]
[1748187192029,0.00015113,106880.0,106870.0,5.137834]
[1748187192145,0.00115113,106880.0,106870.0,5.137834]
[1748187194292,0.00115113,106880.0,106870.0,5.21757485]
[1748187194741,0.00115113,106880.0,106870.0,4.988394]
[1748187194953,0.00115113,106880.0,106870.0,5.420194]
[1748187195387,0.00115113,106880.0,106870.0,5.46703485]
[1748187195603,0.00115113,106880.0,106870.0,5.420194]
[1748187195781,0.00115113,106880.0,106870.0,4.988394]
[1748187195953,0.00115113,106880.0,106870.0,5.420194]
[1748187196163,0.00115113,106880.0,106870.0,5.49993485]
[1748187198344,0.001,106910.0,106890.0,0.0652]
[1748187198570,0.00150421,106910.0,106900.0,5.11209706]
[1748187198766,0.00150421,106910.0,106900.0,5.109759]
[1748187198990,0.12220543,106920.0,106910.0,0.34]
[1748187199164,0.21190216,106920.0,106910.0,5.007686]
[1748187199773,0.1223566,106920.0,106910.0,5.007686]
[1748187201248,0.21190216,106920.0,106910.0,0.60145]
[1748187201449,0.24300216,106920.0,106910.0,0.1494]
[1748187201725,0.24300216,106920.0,106910.0,0.48936]
[1748187202035,0.27710216,106920.0,106910.0,0.48936]
[1748187202237,0.27710216,106920.0,106910.0,0.14936]
[1748187202450,0.27710216,106920.0,106900.0,0.33612]
[1748187202657,0.08954556,106910.0,106900.0,0.33612]
[1748187202859,0.08954556,106910.0,106900.0,1.05737]
[1748187203060,0.08954556,106910.0,106900.0,1.43057]
[1748187203888,0.08954556,106910.0,106900.0,0.85311]
[1748187204304,0.15488382,106910.0,106900.0,0.48548]
[1748187205130,0.15788382,106910.0,106900.0,0.33612]
[1748187205329,0.063,106900.0,106870.0,0.028035]
[1748187205532,0.08954556,106890.0,106880.0,0.43132]
[1748187205733,0.09188382,106890.0,106860.0,0.028036]
[1748187205936,0.12208382,106890.0,106880.0,0.77132]
[1748187206185,0.15228382,106890.0,106870.0,0.28196]
[1748187206417,0.14994556,106880.0,106860.0,0.43132]
[1748187206837,0.15228382,106880.0,106870.0,0.34]
[1748187206999,0.15228382,106880.0,106860.0,0.43132]
[1748187207307,0.15228382,106880.0,106870.0,0.34]
[1748187207507,0.15228382,106880.0,106860.0,0.43132]
[1748187207710,0.15228382,106880.0,106860.0,0.43182421]
[1748187208111,0.15228382,106880.0,106870.0,0.34]
[1748187208530,0.15228382,106880.0,106860.0,0.28246421]
[1748187208702,0.0302,106870.0,106860.0,0.43186421]
[1748187208913,0.08954556,106870.0,106860.0,0.77186421]
[1748187209619,0.08954556,106870.0,106860.0,0.87451221]
[1748187209823,0.08954556,106870.0,106860.0,0.77190421]
[1748187210031,0.08954556,106870.0,106860.0,0.88810021]
[1748187210704,0.09154556,106870.0,106860.0,0.88810021]
[1748187211111,0.002,106870.0,106860.0,0.71159842]
[1748187211321,0.01748903,106910.0,106890.0,0.065]
[1748187211520,0.01748903,106910.0,106900.0,5.39413713]
[1748187211734,0.01748903,106910.0,106900.0,5.391799]
[1748187211930,0.01748903,106910.0,106900.0,2.895329]
[1748187211931,0.10054032,106910.0,106900.0,2.895329]
[1748187212131,0.08954556,106910.0,106900.0,2.895329]
[1748187213391,0.09154556,106910.0,106900.0,2.895329]
[1748187215895,0.09154556,106910.0,106900.0,1.041634]
[1748187217063,0.09154556,106910.0,106900.0,0.610234]
[1748187217246,0.15858382,106910.0,106890.0,0.1494]
[1748187217446,0.15858382,106910.0,106880.0,0.282]
[1748187217447,0.15424556,106900.0,106880.0,0.4314]
[1748187217600,0.0318,106890.0,106880.0,0.4314]
[1748187217805,0.12134556,106890.0,106860.0,0.029037]
[1748187218002,0.08954556,106880.0,106860.0,0.02954121]
[1748187218296,0.08954556,106880.0,106870.0,0.1494]
[1748187218466,0.15658382,106880.0,106870.0,0.1494]
[1748187219300,0.08854556,106880.0,106870.0,1.063088]
[1748187219435,0.08854556,106880.0,106870.0,0.597044]
[1748187219836,0.08854556,106880.0,106870.0,0.604726]
[1748187220038,0.09154556,106880.0,106870.0,0.604726]
[1748187220312,0.09154556,106880.0,106870.0,0.4894]
[1748187220516,0.09154556,106880.0,106870.0,0.59574]
[1748187223955,0.09154556,106880.0,106870.0,0.34]
[1748187224373,0.09154556,106880.0,106870.0,0.4894]
[1748187224810,0.09154556,106880.0,106870.0,0.34]
[1748187225014,0.09154556,106880.0,106870.0,0.4894]
[1748187225015,0.12568382,106880.0,106870.0,0.4894]
[1748187225423,0.15858382,106880.0,106870.0,0.4894]
[1748187225840,0.15858382,106880.0,106870.0,0.34]
[1748187226292,0.15858382,106880.0,106860.0,0.43294421]
[1748187226869,0.15858382,106880.0,106860.0,0.49090421]
[1748187227330,0.15858382,106880.0,106860.0,0.34150421]
[1748187227532,0.12678382,106880.0,106860.0,0.00150421]
[1748187227739,0.0318,106870.0,106860.0,0.15090421]
[1748187227942,0.12134556,106870.0,106860.0,0.00150421]
[1748187228904,0.08954556,106870.0,106860.0,0.00150421]
[1748187229120,0.08954556,106870.0,106860.0,0.11538421]
[1748187229318,0.09188382,106870.0,106860.0,0.11538421]
[1748187229517,0.09188382,106870.0,106860.0,0.44754321]
[1748187229722,0.09188382,106870.0,106860.0,0.34150421]
[1748187230961,0.12368382,106870.0,106860.0,0.49090421]
[1748187231169,0.15658382,106870.0,106860.0,0.00150421]
[1748187231369,0.45658382,106870.0,106860.0,0.00150421]
[1748187231752,0.50424556,106870.0,106860.0,0.00150421]
[1748187233303,0.08954556,106870.0,106860.0,0.00150421]
[1748187234496,0.09254556,106870.0,106860.0,0.00150421]
[1748187235202,0.09354556,106870.0,106840.0,0.14944]
[1748187235426,0.09354556,106870.0,106850.0,0.779418]
[1748187235427,0.08954556,106860.0,106850.0,0.779418]
[1748187235657,0.08954556,106860.0,106850.0,0.746678]
[1748187236439,0.08954556,106860.0,106850.0,0.48944]
[1748187236623,0.08954556,106860.0,106850.0,0.14944]
[1748187237197,0.08954556,106860.0,106840.0,0.00015113]
[1748187237372,0.08954556,106860.0,106850.0,0.14944]
[1748187237602,0.08954556,106860.0,106840.0,0.00015113]
[1748187237806,0.08954556,106860.0,106850.0,0.14944]
[1748187237976,0.08954556,106860.0,106840.0,0.27307113]
[1748187237977,0.08954556,106860.0,106840.0,0.42351113]
[1748187238402,0.08954556,106860.0,106840.0,0.00115113]
[1748187238602,0.08954556,106850.0,106840.0,0.00015113]
[1748187238808,0.08954556,106850.0,106840.0,0.00115113]
[1748187239596,0.08954556,106850.0,106840.0,0.00015113]
[1748187239802,0.08954556,106850.0,106840.0,0.00115113]
[1748187241184,0.08954556,106850.0,106840.0,3.09732413]
[1748187241363,0.0163953,106870.0,106840.0,3.16042413]
[1748187241587,0.0163953,106870.0,106860.0,0.34]
[1748187241588,0.09943727,106870.0,106860.0,0.34]
[1748187241798,0.09943727,106870.0,106860.0,5.233279]
[1748187242140,0.09943727,106870.0,106860.0,5.296379]
[1748187242553,0.09054556,106870.0,106860.0,5.324417]
[1748187243162,0.09054556,106870.0,106860.0,5.293417]
[1748187243555,0.09010556,106870.0,106860.0,5.293417]
[1748187243780,0.09010556,106870.0,106860.0,4.704546]
[1748187243954,0.09010556,106870.0,106860.0,4.676508]
[1748187244561,0.09210556,106870.0,106860.0,0.657446]
[1748187244770,0.09210556,106870.0,106860.0,0.919666]
[1748187244975,0.09444382,106870.0,106860.0,0.919666]
[1748187245394,0.09210556,106870.0,106860.0,0.919666]
[1748187246544,0.09210556,106870.0,106860.0,0.439717]
[1748187246762,0.09210556,106870.0,106860.0,0.290277]
[1748187246981,0.09210556,106870.0,106850.0,1.101867]
[1748187247199,0.08954556,106860.0,106850.0,0.34]
[1748187247428,0.08954556,106860.0,106850.0,1.232252]
[1748187247880,0.08954556,106860.0,106850.0,1.14705]
[1748187248489,0.08954556,106860.0,106850.0,0.70537]
[1748187248660,0.08954556,106860.0,106850.0,0.34]
[1748187248819,0.08954556,106860.0,106850.0,0.48944]
[1748187249028,0.09188382,106860.0,106850.0,0.14944]
[1748187249895,0.09188382,106860.0,106840.0,0.41419113]
[1748187250335,0.08954556,106860.0,106840.0,0.41419113]
[1748187250743,0.09604915,106860.0,106840.0,0.41419113]
[1748187251169,0.09604915,106860.0,106850.0,0.34]
[1748187251373,0.08954556,106860.0,106850.0,0.34]
[1748187252283,0.08954556,106860.0,106850.0,0.531884]
[1748187254927,0.08954556,106860.0,106850.0,0.564384]
[1748187255133,0.08954556,106860.0,106850.0,0.596984]
[1748187255369,0.00056,106870.0,106850.0,0.596984]
[1748187255566,0.09010556,106870.0,106860.0,2.90015412]
[1748187255766,0.09010556,106870.0,106860.0,2.897815]
[1748187256014,0.00056,106870.0,106860.0,2.897815]
[1748187257802,0.00056,106870.0,106860.0,2.91235585]
[1748187258970,0.00056,106870.0,106860.0,3.03487429]
[1748187259367,0.00056,106870.0,106860.0,3.00190141]
[1748187259899,0.00056,106870.0,106860.0,2.85246141]
[1748187260107,0.00056,106870.0,106860.0,2.42291585]
[1748187260358,0.00056,106870.0,106860.0,2.789315]
[1748187260562,0.00056,106870.0,106860.0,3.132315]
[1748187260785,0.00056,106870.0,106860.0,2.792315]
[1748187260990,0.00056,106870.0,106860.0,2.789315]
[1748187261405,0.00056,106870.0,106860.0,2.948175]
[1748187261609,0.00156,106870.0,106860.0,2.762575]
[1748187261811,0.00156,106870.0,106860.0,3.102575]
[1748187262011,0.00056,106870.0,106860.0,3.097575]
[1748187262651,0.031,106860.0,106840.0,0.41411113]
[1748187262874,0.08954556,106850.0,106840.0,0.26471113]
[1748187263067,0.08954556,106850.0,106840.0,2.63284413]
[1748187263269,0.08654556,106850.0,106840.0,2.55576313]
[1748187263419,0.08654556,106850.0,106840.0,2.50424213]
[1748187263621,0.08654556,106850.0,106840.0,2.35484213]
[1748187263834,0.08654556,106850.0,106840.0,1.46985313]
[1748187264206,0.08710556,106850.0,106840.0,1.46985313]
[1748187266037,0.00056,106850.0,106840.0,1.53533665]
[1748187266238,0.00056,106850.0,106840.0,1.67082306]
[1748187266474,0.00056,106850.0,106840.0,1.52142306]
[1748187266676,0.00056,106850.0,106840.0,1.67086306]
[1748187266878,0.00056,106850.0,106840.0,1.67090306]
[1748187267666,0.00156,106850.0,106840.0,1.68090306]
[1748187269426,0.11736354,106910.0,106850.0,0.42704085]
[1748187269620,0.2069091,106910.0,106880.0,0.0625]
[1748187269741,0.2069091,106910.0,106900.0,0.34]
[1748187269948,0.11736354,106910.0,106900.0,4.829371]
[1748187270618,0.17460999,106920.0,106910.0,0.0308]
[1748187270619,0.12220543,106920.0,106910.0,0.0308]
[1748187270764,0.12270964,106920.0,106910.0,5.14289695]
[1748187271125,0.12270964,106920.0,106910.0,5.140559]
[1748187271786,0.12270964,106920.0,106910.0,5.172959]
[1748187272187,0.12270964,106920.0,106910.0,5.140559]
[1748187272593,0.12270964,106920.0,106910.0,5.172959]
[1748187273395,0.12670964,106920.0,106910.0,5.18136806]
[1748187273920,0.12270964,106920.0,106910.0,5.14896806]
[1748187274361,0.12470964,106920.0,106910.0,5.14896806]
[1748187274862,0.12470964,106920.0,106910.0,3.68465006]
[1748187275069,0.12470964,106920.0,106910.0,3.53046906]
[1748187275511,0.12470964,106920.0,106910.0,3.57580991]
[1748187275713,0.12470964,106920.0,106910.0,3.60820991]
[1748187276124,0.11870964,106920.0,106910.0,3.60820991]
[1748187276531,0.11870964,106920.0,106910.0,3.69775547]
[1748187276746,0.11870964,106920.0,106910.0,3.39560991]
[1748187276945,0.11870964,106920.0,106910.0,3.84024991]
[1748187277154,0.11870964,106920.0,106910.0,3.96219547]
[1748187277578,0.11870964,106920.0,106910.0,3.92979547]
[1748187277784,0.11870964,106920.0,106910.0,0.79720906]
[1748187277961,0.11870964,106920.0,106910.0,1.55104906]
[1748187279037,0.11870964,106920.0,106910.0,1.54800906]
[1748187279268,0.2406552,106920.0,106910.0,0.582554]
[1748187279496,0.2724552,106920.0,106880.0,0.33616]
[1748187279710,0.19675736,106910.0,106890.0,1.55424]
[1748187279914,0.22855736,106910.0,106900.0,0.13424]
[1748187280140,0.0642,106900.0,106880.0,0.028028]
[1748187280421,0.15374556,106900.0,106890.0,0.31276]
[1748187280646,0.15374556,106900.0,106890.0,0.7508]
[1748187280870,0.15374556,106900.0,106890.0,0.4108]
[1748187281073,0.0324,106890.0,106880.0,0.4108]
[1748187281292,0.12194556,106890.0,106880.0,0.7508]
[1748187281525,0.15374556,106890.0,106880.0,0.4108]
[1748187281988,0.08954556,106890.0,106870.0,0.33604]
[1748187282210,0.15374556,106880.0,106870.0,0.74684]
[1748187282435,0.08954556,106880.0,106870.0,2.677522]
[1748187282666,0.02287889,106880.0,106870.0,2.677522]
[1748187282887,0.02287889,106880.0,106870.0,1.015807]
[1748187283121,0.02287889,106880.0,106870.0,1.355807]
[1748187283327,0.02287889,106880.0,106870.0,1.209611]
[1748187283731,0.02287889,106880.0,106870.0,1.208611]
[1748187284137,0.001,106880.0,106870.0,1.208611]
[1748187284974,0.001,106880.0,106870.0,1.238711]
[1748187285731,0.001,106880.0,106870.0,1.34279741]
[1748187285933,0.001,106880.0,106870.0,1.37379741]
[1748187288103,0.14700543,106920.0,106880.0,0.41564085]
[1748187288104,0.11620543,106920.0,106880.0,0.41564085]
[1748187288311,0.2062552,106920.0,106900.0,0.34]
[1748187288515,0.2062552,106920.0,106910.0,2.153871]
[1748187289461,0.031,106910.0,106870.0,0.33604]
[1748187289610,0.12034556,106900.0,106890.0,0.34]
[1748187289778,0.12034556,106900.0,106890.0,0.910745]
[1748187290183,0.11934556,106900.0,106890.0,0.910745]
[1748187290786,0.11934556,106900.0,106890.0,0.881926]
[1748187291103,0.11934556,106900.0,106890.0,1.293766]
[1748187291104,0.09354556,106900.0,106890.0,1.293766]
[1748187291849,0.09354556,106900.0,106890.0,0.882926]
[1748187292049,0.09354556,106900.0,106890.0,1.293766]
[1748187293040,0.004,106900.0,106890.0,1.293766]
[1748187293842,0.004,106900.0,106890.0,1.30830685]
[1748187294996,0.004,106900.0,106890.0,1.42765241]
[1748187295222,0.004,106900.0,106890.0,1.45865241]
[1748187295422,0.11470964,106920.0,106900.0,0.34]
[1748187295634,0.11470964,106920.0,106910.0,4.77205702]
[1748187295813,0.11470964,106920.0,106910.0,4.620359]
[1748187295988,0.11470964,106920.0,106910.0,5.031159]
[1748187296392,0.11470964,106920.0,106910.0,5.371159]
[1748187296903,0.12070964,106920.0,106910.0,5.38569985]
[1748187297085,0.12070964,106920.0,106910.0,5.44679985]
[1748187297262,0.11470964,106920.0,106910.0,5.44679985]
[1748187297468,0.11770964,106920.0,106910.0,5.44679985]
[1748187298458,0.11770964,106920.0,106910.0,5.41499985]
[1748187298668,0.11770964,106920.0,106910.0,5.38569985]
[1748187298869,0.11470964,106920.0,106910.0,5.38569985]
[1748187299081,0.11470964,106920.0,106910.0,5.38669985]
[1748187299617,0.11470964,106920.0,106910.0,5.12525985]
[1748187299819,0.11470964,106920.0,106910.0,5.38669985]
[1748187300946,0.11470964,106920.0,106910.0,4.97589985]
[1748187301144,0.11470964,106920.0,106910.0,5.38665985]
[1748187301612,0.11470964,106920.0,106910.0,5.41915985]
[1748187301819,0.11470964,106920.0,106910.0,5.50870541]
[1748187301954,0.11470964,106920.0,106910.0,5.53870541]
[1748187302563,0.10870964,106920.0,106910.0,5.53870541]
[1748187302765,0.02534914,106920.0,106910.0,5.57175316]
[1748187303395,0.02534914,106920.0,106910.0,5.58175316]
[1748187303574,0.07089523,106970.0,106930.0,0.04504085]
[1748187303769,0.19099208,106970.0,106940.0,5.11205604]
[1748187303984,0.04174652,106970.0,106960.0,0.34]
[1748187304186,0.04174652,106970.0,106960.0,2.50953]
[1748187304187,0.03288934,106970.0,106960.0,2.50953]
[1748187304945,0.03288934,106970.0,106960.0,1.370611]
[1748187305075,0.03288934,106970.0,106960.0,1.347519]
[1748187305300,0.00364971,106970.0,106960.0,1.42205985]
[1748187305521,0.00867497,106990.0,106960.0,1.54545316]
[1748187305774,0.00867497,106990.0,106980.0,0.34]
[1748187306077,0.12892053,106990.0,106980.0,1.567109]
[1748187306250,0.12892053,106990.0,106980.0,1.806295]
[1748187306430,0.00867497,106990.0,106980.0,1.806295]
[1748187306639,0.06855944,107000.0,106980.0,1.82083585]
[1748187306842,0.06855944,107000.0,106990.0,4.00230026]
[1748187307047,0.06855944,107000.0,106990.0,3.57565075]
[1748187307231,0.06855944,107000.0,106990.0,3.61319592]
[1748187307429,0.06855944,107000.0,106990.0,3.96782385]
[1748187308658,0.06855944,107000.0,106990.0,3.2548434]
[1748187308867,0.218705,107000.0,106940.0,0.0632]
[1748187309078,0.22495736,106990.0,106970.0,0.2534]
[1748187309254,0.22495736,106990.0,106980.0,0.305778]
[1748187309877,0.22495736,106990.0,106980.0,0.305738]
[1748187310324,0.22495736,106990.0,106980.0,0.140288]
[1748187310526,0.0625,106980.0,106970.0,0.40264]
[1748187310845,0.0625,106980.0,106970.0,0.14928]
[1748187310846,0.12014556,106980.0,106970.0,0.14928]
[1748187311048,0.12014556,106980.0,106970.0,0.371189]
[1748187311453,0.15204556,106980.0,106970.0,0.296852]
[1748187311669,0.0319,106970.0,106960.0,0.25336]
[1748187311867,0.0319,106970.0,106960.0,0.870146]
[1748187312046,0.15204556,106980.0,106960.0,0.870146]
[1748187312248,0.15204556,106980.0,106970.0,0.445721]
[1748187312447,0.15204556,106980.0,106970.0,0.292041]
[1748187312704,0.15504556,106980.0,106970.0,0.292041]